bitfinex/quotes_ETHUSD_20240715
["timestamp","ask_amount","ask_price","bid_price","bid_amount"]
[1721052994242,0.93426862,3362.3,3361.8,2.97459]
[1721052994866,0.93426862,3362.2,3361.6,5.94948]
[1721052995069,0.93426862,3362.2,3361.6,2.97471]
[1721052995234,0.90744736,3362.2,3361.6,2.97471]
[1721052995976,0.90744736,3362.2,3361.7,2.97467]
[1721052997042,0.55,3362.1,3361.2,2.97511]
[1721052997243,0.55,3362.1,3361.1,3.0]
[1721052997244,2.97458,3361.9,3361.1,3.0]
[1721052997443,5.36159,3361.7,3361.0,2.97527]
[1721052997692,6.29585862,3361.7,3361.0,2.97527]
[1721052997841,1.65665886,3361.6,3361.0,2.97527]
[1721052998042,0.07437597,3361.5,3360.8,2.97546]
[1721052998259,0.07437597,3361.5,3360.1,2.301]
[1721052998460,0.07437597,3361.5,3359.3,2.9768]
[1721052998461,2.97511,3361.3,3360.4,2.97577]
[1721052998688,0.07438507,3361.2,3360.4,2.97577]
[1721052998912,1.33663423,3361.2,3360.4,2.97577]
[1721052999189,0.40449321,3361.2,3360.4,2.97577]
[1721052999572,0.07438543,3361.1,3360.2,2.976]
[1721052999896,0.07438543,3361.1,3359.7,0.132]
[1721052999897,2.97577,3360.5,3359.7,0.132]
[1721053000070,2.97592,3360.3,3359.7,0.132]
[1721053000269,0.90036353,3360.4,3359.7,3.10844]
[1721053000270,1.375959,3360.4,3359.7,3.10844]
[1721053000469,0.55,3360.4,3359.7,0.132]
[1721053000699,2.97603,3360.2,3359.7,0.132]
[1721053001114,0.55,3360.1,3359.7,0.132]
[1721053001502,0.93214102,3360.5,3359.7,3.10845]
[1721053001802,0.55,3360.4,3359.7,3.10845]
[1721053002003,4.45798102,3360.4,3359.7,0.132]
[1721053002360,4.45798102,3360.4,3359.7,3.10845]
[1721053002566,3.05033371,3360.3,3359.7,0.132]
[1721053002797,0.55,3360.2,3359.7,0.132]
[1721053002985,3.600489,3360.2,3359.7,0.132]
[1721053003500,4.53263002,3360.2,3359.7,0.132]
[1721053003681,0.62172322,3360.1,3359.7,0.132]
[1721053003881,0.55,3360.0,3359.7,0.132]
[1721053004229,5.44546,3359.8,3359.7,0.132]
[1721053004702,6.92760102,3359.8,3359.7,0.132]
[1721053005366,9.90396102,3359.8,3359.7,0.132]
[1721053005567,9.07537392,3359.8,3359.7,0.132]
[1721053005896,11.61672001,3359.8,3359.7,0.132]
[1721053006078,10.44952984,3359.8,3359.7,0.132]
[1721053006287,12.99089324,3359.8,3359.7,0.132]
[1721053006483,10.44952984,3359.8,3359.7,0.132]
[1721053006871,12.99089557,3359.8,3359.7,0.132]
[1721053007188,10.44953122,3359.8,3359.7,0.132]
[1721053007494,11.69238591,3359.8,3359.7,0.132]
[1721053007706,11.74808573,3359.8,3359.7,0.132]
[1721053008068,14.74808573,3359.8,3359.7,0.132]
[1721053008882,14.74808573,3359.8,3359.7,0.11880001]
[1721053009082,21.2792396,3359.8,3359.7,0.11880001]
[1721053009315,21.27918144,3359.8,3359.7,0.11880001]
[1721053009675,25.27918144,3359.8,3359.7,0.11880001]
[1721053010027,25.27918144,3359.8,3359.7,0.06431461]
[1721053010221,25.25368144,3359.8,3359.7,0.06431461]
[1721053010590,23.95512693,3359.8,3359.7,0.06431461]
[1721053010809,25.25379199,3359.8,3359.7,0.06431461]
[1721053010998,23.95512693,3359.8,3359.7,0.06431461]
[1721053011199,24.83805587,3359.8,3359.7,0.06431461]
[1721053011912,2.97704,3359.1,3358.3,2.97768]
[1721053012111,0.55,3359.0,3358.4,2.97756]
[1721053012348,0.55,3359.0,3357.7,5.40218]
[1721053012349,0.55,3359.0,3358.5,2.97743]
[1721053012496,0.55,3359.2,3358.6,2.97737]
[1721053012695,4.14776756,3359.4,3358.6,2.97737]
[1721053012901,3.59787756,3359.3,3358.4,2.97754]
[1721053013111,2.977,3359.1,3358.3,2.97766]
[1721053013532,0.55,3359.0,3358.3,2.97766]
[1721053015024,0.55,3359.0,3358.4,2.97759]
[1721053016062,0.55,3359.0,3358.4,3.04159]
[1721053016430,0.05188764,3359.2,3358.6,2.97741]
[1721053016638,0.55,3359.1,3358.6,2.97741]
[1721053016824,0.55,3359.1,3358.4,3.04155]
[1721053017019,0.96997852,3359.1,3358.4,3.0416]
[1721053018523,3.94696852,3359.1,3358.4,0.064]
[1721053018726,2.2527,3359.0,3358.4,0.064]
[1721053018923,0.55,3358.9,3358.4,3.0416]
[1721053020217,0.55,3359.0,3358.4,3.0416]
[1721053020437,0.55,3359.1,3358.6,2.97736]
[1721053021652,1.44352976,3359.1,3358.5,2.97746]
[1721053022560,4.44352976,3359.1,3358.5,2.97746]
[1721053022728,7.42052976,3359.1,3358.4,0.064]
[1721053022924,2.97716,3358.9,3358.4,0.064]
[1721053023179,5.2885,3358.7,3358.4,0.064]
[1721053023324,0.07444637,3358.6,3358.4,0.064]
[1721053023529,0.55,3358.5,3358.4,0.064]
[1721053023746,3.52751,3358.5,3358.4,0.064]
[1721053023948,3.60196313,3358.5,3358.4,0.064]
[1721053024162,4.56596572,3358.5,3358.4,0.064]
[1721053024528,4.49151259,3358.5,3358.4,0.064]
[1721053024831,2.9776,3358.4,3357.8,2.97813]
[1721053025027,0.55,3358.3,3357.8,2.97813]
[1721053026563,0.96400259,3358.5,3357.8,2.97813]
[1721053026564,0.55,3358.4,3357.8,2.97813]
[1721053026726,1.23025526,3358.4,3357.8,2.97813]
[1721053028628,0.55,3358.4,3358.0,2.97795]
[1721053028835,0.55,3358.6,3358.1,2.97786]
[1721053029031,0.084,3358.4,3358.1,2.97786]
[1721053032973,0.084,3358.4,3357.9,2.97798]
[1721053033185,0.084,3358.4,3357.7,2.97818]
[1721053033482,0.084,3358.4,3357.5,2.97836]
[1721053033483,2.97779,3358.2,3357.5,2.97836]
[1721053033685,2.97779,3358.2,3357.6,2.9783]
[1721053033979,0.55,3358.1,3357.6,2.9783]
[1721053036761,0.55,3358.2,3357.6,2.9783]
[1721053036980,0.96618086,3358.1,3357.6,2.9783]
[1721053037182,0.55,3358.0,3357.6,2.9783]
[1721053037883,2.3519,3358.3,3357.8,2.97806]
[1721053038449,0.55,3358.2,3357.6,2.97825]
[1721053038646,0.66321596,3358.1,3357.5,2.9784]
[1721053038950,0.55,3358.0,3357.5,2.9784]
[1721053039385,0.55,3358.0,3357.4,2.97849]
[1721053041684,0.55,3358.0,3357.5,2.9784]
[1721053042064,0.55,3358.0,3357.6,2.97831]
[1721053042971,0.55,3358.0,3357.5,2.9784]
[1721053043287,0.4191056,3357.9,3357.5,2.9784]
[1721053044589,0.4191056,3357.9,3356.7,2.4156]
[1721053044590,2.97841,3357.5,3356.7,2.97907]
[1721053044757,0.07447536,3357.4,3356.7,2.97907]
[1721053044952,0.69332341,3357.4,3356.7,2.97907]
[1721053045163,2.99604805,3357.3,3356.7,2.97907]
[1721053045458,0.7721952,3357.2,3356.7,2.97907]
[1721053045738,1.39104325,3357.2,3356.7,2.97907]
[1721053046193,4.36976191,3357.2,3356.3,2.97943]
[1721053046491,0.55,3357.1,3356.3,2.97943]
[1721053046795,0.72969716,3357.0,3356.4,2.97938]
[1721053047290,2.3346,3356.8,3355.9,2.97979]
[1721053047492,3.59796805,3356.7,3355.2,0.118958]
[1721053047694,0.61884805,3356.5,3355.9,2.97975]
[1721053048000,0.61884805,3356.5,3356.0,2.9797]
[1721053048001,0.50762401,3356.4,3356.0,2.9797]
[1721053049092,0.55,3356.6,3356.0,2.9797]
[1721053051194,0.55,3356.6,3355.2,3.118958]
[1721053051195,5.31619,3356.4,3355.5,5.96026]
[1721053051491,5.31619,3356.4,3355.3,2.98032]
[1721053051492,0.61884805,3356.1,3355.3,2.98032]
[1721053051698,0.61884805,3356.1,3355.2,0.118958]
[1721053051699,4.02932757,3356.0,3355.2,3.099388]
[1721053051860,0.55,3355.9,3355.2,3.099388]
[1721053052063,3.52982,3355.9,3355.2,3.099388]
[1721053052400,3.52982,3355.9,3355.2,0.118958]
[1721053052401,0.69336094,3355.8,3355.2,0.118958]
[1721053052698,0.61884805,3355.5,3355.2,0.118958]
[1721053052894,2.98018,3355.6,3355.2,0.118958]
[1721053052895,0.61884805,3355.6,3355.2,0.118958]
[1721053053071,2.98009,3355.6,3355.2,0.118958]
[1721053053392,2.2782,3355.4,3355.2,0.118958]
[1721053053595,0.95662981,3355.3,3355.2,0.118958]
[1721053053842,4.64562981,3355.3,3355.2,0.118958]
[1721053054097,15.04669997,3355.3,3355.2,0.118958]
[1721053054266,14.61263469,3355.3,3355.2,0.118958]
[1721053054662,14.3019853,3355.3,3355.2,0.118958]
[1721053054867,13.6808637,3355.3,3355.2,0.118958]
[1721053055570,4.50662981,3355.3,3355.2,0.118958]
[1721053055773,3.55,3355.3,3355.2,0.118958]
[1721053055970,0.55,3355.3,3355.2,0.118958]
[1721053056773,2.2782,3355.4,3355.2,0.118958]
[1721053056991,5.98001,3355.7,3355.2,0.118958]
[1721053056992,3.0,3355.7,3355.2,0.118958]
[1721053057191,0.55,3355.6,3355.2,0.118958]
[1721053057385,0.7990578,3355.5,3355.2,0.118958]
[1721053058114,2.2779,3356.4,3355.5,2.98011]
[1721053058327,2.2779,3356.4,3355.7,2.97999]
[1721053058609,0.05191816,3356.2,3355.7,2.97999]
[1721053058811,5.25729,3356.4,3355.7,2.97999]
[1721053059800,0.55,3356.3,3355.7,2.97999]
[1721053060147,0.55,3356.3,3355.5,2.98011]
[1721053060148,0.55,3356.3,3355.6,2.98007]
[1721053060270,0.05191627,3356.6,3356.0,2.97971]
[1721053060607,0.05191627,3356.6,3355.4,3.483]
[1721053060608,0.66373099,3356.6,3355.4,3.483]
[1721053060768,2.97954,3356.3,3355.4,2.98026]
[1721053060969,2.4058,3356.1,3355.4,2.98026]
[1721053061300,2.4058,3356.1,3355.5,2.98018]
[1721053061301,0.07450784,3356.0,3355.5,2.98018]
[1721053061511,0.07450672,3355.9,3355.2,0.118958]
[1721053061804,3.52993,3355.8,3355.2,0.118958]
[1721053061993,0.07451682,3355.7,3355.2,0.118958]
[1721053062171,3.05458682,3355.7,3355.2,0.118958]
[1721053062509,3.53011,3355.6,3355.2,0.118958]
[1721053062683,0.07451905,3355.5,3355.2,0.118958]
[1721053062882,0.65846991,3355.4,3355.2,0.118958]
[1721053063270,0.55,3355.6,3355.2,0.118958]
[1721053063471,3.55,3355.8,3355.2,0.118958]
[1721053063674,6.52992,3355.8,3355.2,0.118958]
[1721053064106,3.55,3355.8,3355.2,3.099388]
[1721053064401,2.4058,3356.1,3355.4,2.98021]
[1721053064699,0.852436,3356.0,3355.4,2.98021]
[1721053065075,6.832196,3356.0,3355.2,3.099388]
[1721053065278,2.97983,3355.9,3355.2,0.118958]
[1721053065792,3.852436,3356.0,3355.2,3.099388]
[1721053066384,0.55,3355.9,3355.2,3.099388]
[1721053066595,0.6787886,3355.8,3355.4,2.98024]
[1721053066796,2.4058,3356.1,3355.5,2.9801]
[1721053067002,2.3462,3356.6,3355.5,2.98009]
[1721053067200,2.3462,3356.6,3356.1,2.97964]
[1721053067703,2.3462,3356.6,3355.9,2.97975]
[1721053067911,0.07449464,3356.5,3355.7,2.97997]
[1721053068110,0.54206946,3356.4,3355.8,2.9799]
[1721053068611,0.07449818,3356.3,3355.6,2.98008]
[1721053068786,0.07450224,3356.2,3355.4,2.98026]
[1721053069114,3.05406224,3356.2,3355.4,2.98026]
[1721053069284,2.97965,3356.1,3355.4,2.98026]
[1721053069485,6.66045946,3356.4,3355.4,2.98026]
[1721053069486,0.85541522,3356.0,3355.4,2.98026]
[1721053070504,0.85541522,3356.0,3355.5,2.98018]
[1721053070733,0.30541522,3356.0,3355.5,2.98018]
[1721053070907,0.30541522,3356.0,3355.3,2.98035]
[1721053071106,0.37992481,3356.0,3355.3,2.98035]
[1721053071413,0.33595848,3355.9,3355.2,0.118958]
[1721053071713,0.07451078,3355.8,3355.2,3.099318]
[1721053071926,0.33595848,3355.9,3355.3,2.98029]
[1721053072077,0.30541522,3356.0,3355.3,2.98029]
[1721053072609,0.30541522,3356.0,3355.4,2.98025]
[1721053072983,0.30541522,3356.0,3355.5,2.98017]
[1721053073179,2.9795,3356.3,3355.5,2.98017]
[1721053073485,3.52956,3356.2,3355.5,2.98017]
[1721053074553,0.07450611,3356.1,3355.4,2.98025]
[1721053074838,0.36040661,3356.0,3355.4,2.98025]
[1721053074980,0.0745072,3355.9,3355.3,2.98035]
[1721053075386,0.0745072,3355.9,3355.2,0.118958]
[1721053075387,2.4392,3355.8,3355.2,0.118958]
[1721053075625,0.07451102,3355.7,3355.2,0.118958]
[1721053075833,0.07451102,3355.7,3355.2,3.099388]
[1721053076113,0.65989578,3355.7,3355.2,3.099388]
[1721053076481,0.65989578,3355.7,3355.2,0.118958]
[1721053077410,0.58538476,3355.7,3355.2,3.099398]
[1721053079141,0.36040661,3356.0,3355.5,2.98012]
[1721053079423,0.55,3356.2,3355.5,2.98012]
[1721053079596,3.55,3356.2,3355.5,2.98012]
[1721053080199,6.52963,3356.2,3355.3,2.98035]
[1721053080385,4.28647961,3356.1,3355.3,2.98035]
[1721053080586,4.36098758,3356.1,3355.3,2.98035]
[1721053080817,1.30682961,3356.1,3355.5,2.98015]
[1721053081031,4.28650961,3356.1,3355.3,2.98029]
[1721053081856,2.97991,3355.8,3355.2,0.118958]
[1721053081989,2.98028,3355.4,3355.2,0.118958]
[1721053082194,3.05480122,3355.4,3355.2,0.118958]
[1721053082392,0.07452122,3355.4,3355.2,0.118958]
[1721053082610,2.98018,3355.5,3355.2,0.118958]
[1721053082809,0.62018668,3355.9,3355.3,2.613]
[1721053083096,7.30110396,3356.0,3355.3,2.613]
[1721053083294,0.55,3355.9,3355.3,2.613]
[1721053083521,3.55,3355.9,3355.3,2.613]
[1721053084221,6.52988,3355.9,3355.3,2.613]
[1721053084389,4.83826175,3355.8,3355.2,0.118958]
[1721053085331,2.98024,3355.5,3355.2,0.118958]
[1721053085628,5.42595973,3355.5,3355.2,0.118958]
[1721053086322,2.98028,3355.4,3355.2,0.118958]
[1721053086531,3.0548725,3355.3,3355.2,0.118958]
[1721053086829,6.95638192,3355.3,3355.2,0.118958]
[1721053087131,11.58296122,3355.3,3355.2,0.118958]
[1721053087335,12.33336184,3355.3,3355.2,0.118958]
[1721053087694,10.77739634,3355.3,3355.2,0.118958]
[1721053088289,13.77739634,3355.3,3355.2,0.118958]
[1721053088490,21.39774673,3355.3,3355.2,0.1041528]
[1721053088702,25.39774673,3355.3,3355.2,0.1041528]
[1721053089128,21.39774673,3355.3,3355.2,0.1041528]
[1721053089326,19.52965767,3355.3,3355.2,0.1041528]
[1721053089695,19.68137766,3355.3,3355.2,0.1041528]
[1721053090238,19.68137766,3355.3,3353.0,2.98237]
[1721053090239,5.5446,3354.2,3353.0,2.98237]
[1721053090401,5.5446,3354.2,3353.1,2.98231]
[1721053090402,0.62342808,3353.7,3353.1,2.98231]
[1721053090600,0.62342808,3353.7,3353.3,2.98213]
[1721053090909,0.62342808,3353.9,3353.2,2.98222]
[1721053091102,0.62342808,3354.0,3353.2,2.98222]
[1721053091429,0.62342808,3354.2,3353.6,2.98179]
[1721053091630,0.62342808,3354.2,3353.8,2.98162]
[1721053091830,0.93514213,3354.4,3353.8,2.98162]
[1721053091831,0.62342808,3354.4,3353.8,2.98162]
[1721053092051,0.62342808,3354.3,3353.4,5.59503]
[1721053092199,2.98118,3354.4,3353.4,2.98203]
[1721053092200,0.62342808,3354.2,3353.4,2.98203]
[1721053092399,0.62342808,3354.2,3353.5,2.98188]
[1721053092801,0.62342808,3354.2,3353.6,2.98185]
[1721053093320,1.20208872,3354.2,3353.3,2.98213]
[1721053093521,0.62342808,3354.1,3353.3,2.98213]
[1721053093925,0.62343138,3354.1,3353.3,2.98213]
[1721053094124,0.69798392,3354.1,3353.3,2.98213]
[1721053094327,3.60502138,3354.0,3353.2,2.98222]
[1721053094535,5.35680665,3353.9,3353.0,2.98234]
[1721053094735,0.62343138,3353.8,3353.0,2.98234]
[1721053094934,0.62343138,3353.8,3353.1,2.98228]
[1721053094935,0.0745577,3353.7,3353.1,2.98228]
[1721053095148,0.69798908,3353.7,3353.0,2.98239]
[1721053095355,2.98219,3353.3,3352.6,2.98275]
[1721053095563,2.98219,3353.3,3352.3,2.983]
[1721053095564,2.4541,3353.2,3352.3,2.983]
[1721053095729,3.60578138,3353.1,3352.3,2.983]
[1721053096049,0.62343138,3353.0,3352.3,2.983]
[1721053096222,0.07457537,3352.9,3352.1,2.98318]
[1721053096415,3.60713537,3352.9,3352.1,2.98318]
[1721053096633,2.98258,3352.8,3352.1,2.98318]
[1721053096860,0.07458103,3352.7,3352.1,2.98318]
[1721053097079,0.07458103,3352.7,3351.9,2.98335]
[1721053097213,0.15858103,3352.7,3352.0,2.98327]
[1721053097416,0.15858103,3352.7,3351.8,0.118958]
[1721053097417,0.084,3352.7,3352.4,2.9829]
[1721053098336,0.084,3352.7,3352.6,2.98275]
[1721053098654,0.084,3352.7,3352.6,5.9655]
[1721053099438,0.084,3352.7,3352.6,8.94825]
[1721053099828,0.084,3352.7,3352.6,11.94825]
[1721053100138,0.084,3352.7,3352.6,20.18145]
[1721053100338,2.3414,3354.8,3352.6,20.18145]
[1721053100339,0.62303878,3354.6,3354.1,2.98133]
[1721053100523,0.3898997,3354.5,3354.1,2.98133]
[1721053100727,0.3898997,3354.5,3354.2,2.98132]
[1721053101673,0.3898997,3354.5,3354.3,2.98123]
[1721053101820,0.3898997,3354.5,3354.4,2.98115]
[1721053102850,0.3898997,3354.5,3354.2,2.98126]
[1721053103233,0.3898997,3354.5,3354.3,2.98124]
[1721053105043,2.3414,3354.8,3354.3,2.98124]
[1721053106885,2.3414,3354.8,3354.1,2.98139]
[1721053106886,2.3414,3354.8,3354.4,2.98115]
[1721053107085,3.0,3354.9,3354.7,2.98087]
[1721053107295,0.93455818,3355.1,3354.7,2.98087]
[1721053107296,0.62303878,3355.1,3354.7,2.98087]
[1721053107440,0.46316228,3355.0,3354.7,2.98087]
[1721053108240,0.46316228,3355.0,3354.5,2.981]
[1721053108441,0.46316228,3355.0,3354.6,2.98097]
[1721053108640,0.65371881,3354.9,3354.6,2.98097]
[1721053108835,0.65371881,3354.9,3354.6,2.98095]
[1721053109437,0.65371881,3354.9,3354.0,2.98148]
[1721053109674,0.07453649,3354.8,3354.0,2.98148]
[1721053109867,0.07453666,3354.7,3354.2,2.98131]
[1721053110047,0.49174044,3354.7,3354.2,2.98131]
[1721053110244,0.41720378,3354.7,3354.2,2.98131]
[1721053111239,1.11357795,3354.7,3353.9,2.98153]
[1721053111873,4.09447795,3354.7,3353.9,2.98153]
[1721053112077,3.143,3354.5,3353.5,2.98193]
[1721053112277,0.62183922,3354.2,3353.5,2.98193]
[1721053112491,6.60309922,3354.3,3353.6,2.98186]
[1721053112799,3.62183922,3354.3,3352.9,5.9789]
[1721053112937,3.62183922,3354.5,3353.9,2.98159]
[1721053113143,1.50366574,3354.4,3354.0,2.98144]
[1721053113344,1.24367844,3354.8,3354.4,2.98114]
[1721053113345,0.62183922,3354.8,3354.4,2.98114]
[1721053113578,2.93473922,3355.0,3354.4,2.98114]
[1721053113780,2.93473922,3355.0,3353.9,3.491]
[1721053114081,2.93473922,3355.0,3353.9,2.98159]
[1721053114386,0.62183922,3354.9,3354.2,2.98132]
[1721053114561,0.69226574,3354.8,3354.2,2.98132]
[1721053115440,2.93473922,3355.0,3354.5,2.98106]
[1721053115645,2.3129,3355.0,3354.5,2.98106]
[1721053115848,0.62183922,3355.1,3354.0,2.98146]
[1721053116181,0.05178703,3355.2,3354.8,2.9808]
[1721053116386,0.62183922,3355.8,3355.4,2.98019]
[1721053116867,0.62183922,3355.8,3355.5,2.98016]
[1721053117052,0.62183922,3355.8,3355.4,2.98023]
[1721053117253,0.62183922,3355.7,3355.4,2.98023]
[1721053117458,0.93275883,3355.8,3355.4,2.98023]
[1721053117459,0.62183922,3355.8,3355.4,2.98023]
[1721053117655,1.11673886,3355.7,3355.2,2.98038]
[1721053117879,0.62183922,3355.6,3354.9,2.98071]
[1721053118045,0.62183922,3355.4,3354.9,2.98071]
[1721053118244,0.62183922,3355.2,3354.5,2.981]
[1721053118480,0.62183922,3354.9,3354.5,2.981]
[1721053118646,0.16291237,3354.8,3354.5,2.981]
[1721053118846,0.07452558,3354.7,3354.5,2.981]
[1721053119046,0.7853333,3354.8,3354.2,2.98132]
[1721053119243,0.62242093,3354.7,3354.2,2.98132]
[1721053119459,0.7853333,3354.8,3354.4,2.98114]
[1721053119675,0.16291237,3354.8,3354.4,2.98114]
[1721053120570,0.16291237,3354.8,3354.2,2.98132]
[1721053120765,0.16291237,3354.8,3354.1,2.98142]
[1721053120968,0.7853333,3354.8,3354.4,2.98115]
[1721053121149,0.17189647,3354.7,3354.4,2.98115]
[1721053121350,0.7943174,3354.7,3354.4,2.98115]
[1721053121778,0.17189647,3354.7,3354.4,2.98115]
[1721053121985,0.62277347,3354.7,3354.4,2.98115]
[1721053122154,2.3472,3354.6,3354.1,2.98142]
[1721053122357,3.04451374,3354.6,3354.1,2.98142]
[1721053122575,0.62277347,3354.5,3354.1,5.96277]
[1721053122774,2.96997347,3354.6,3354.1,2.98135]
[1721053123090,0.4067046,3354.5,3354.2,2.98131]
[1721053123591,0.62277347,3354.6,3354.4,2.98113]
[1721053123947,0.62277347,3354.6,3354.5,2.98107]
[1721053124354,0.62277347,3354.8,3354.6,2.98098]
[1721053125091,3.9341602,3355.0,3354.6,2.98098]
[1721053125092,0.62277347,3354.9,3354.6,2.98098]
[1721053125285,0.62277347,3354.7,3354.6,2.98098]
[1721053125473,0.62277347,3354.8,3354.7,2.98089]
[1721053126068,0.62277347,3354.8,3354.6,2.98098]
[1721053126269,1.07846684,3354.7,3353.7,2.98174]
[1721053126477,1.07846684,3354.7,3354.6,2.98098]
[1721053126683,0.62277347,3354.7,3354.6,2.98098]
[1721053126879,0.62277347,3354.8,3354.6,2.98098]
[1721053127298,0.62277347,3354.7,3354.6,2.98098]
[1721053127882,0.62277347,3354.7,3354.4,2.98109]
[1721053128067,1.20354459,3354.7,3354.5,2.98102]
[1721053128271,1.20353884,3354.7,3354.6,2.98098]
[1721053128767,1.20353884,3354.7,3354.3,2.98121]
[1721053128970,0.62329078,3354.4,3354.3,2.98121]
[1721053129172,0.93494479,3354.5,3354.1,2.98139]
[1721053129418,0.62355629,3354.3,3353.9,2.98153]
[1721053129700,0.61871171,3354.4,3353.7,2.98176]
[1721053129701,0.62359364,3354.0,3353.7,2.98171]
[1721053129865,0.62359364,3354.0,3353.9,2.98159]
[1721053130067,0.62359364,3354.1,3353.9,2.98159]
[1721053130992,0.62359364,3354.1,3353.7,2.98171]
[1721053130993,0.79227517,3354.0,3353.7,2.98171]
[1721053131208,0.07454472,3353.9,3353.7,2.98171]
[1721053131384,0.07454472,3353.9,3353.8,2.98169]
[1721053131385,0.69827224,3353.9,3353.8,2.98169]
[1721053131563,0.62372752,3353.9,3353.6,2.98181]
[1721053132699,0.62372752,3353.7,3353.4,2.98204]
[1721053132917,0.16338673,3353.6,3352.4,3.491]
[1721053133075,0.62372752,3353.3,3353.0,2.98235]
[1721053133924,0.69828695,3353.3,3353.0,2.98235]
[1721053134083,0.62372752,3353.2,3353.0,2.98235]
[1721053134265,0.69828712,3353.2,3353.0,2.98235]
[1721053134465,0.69828712,3353.2,3353.1,2.98231]
[1721053134466,0.62372752,3353.2,3353.1,2.98231]
[1721053134700,0.69828758,3353.3,3353.0,2.98235]
[1721053134902,0.92833382,3353.3,3352.8,2.98257]
[1721053135250,0.92833382,3353.3,3351.9,3.491]
[1721053135251,0.62386176,3353.1,3352.6,2.98275]
[1721053135397,0.62386176,3352.9,3352.6,2.98275]
[1721053135743,0.62386176,3352.8,3352.6,2.98275]
[1721053135890,0.62386176,3352.8,3352.7,2.98267]
[1721053136090,0.62386176,3352.9,3352.7,2.98267]
[1721053136631,0.62386176,3352.9,3352.8,5.96516]
[1721053136830,0.62386176,3353.2,3352.1,2.98319]
[1721053137134,0.67562405,3353.3,3352.5,2.98284]
[1721053137288,0.67562405,3353.3,3353.0,2.98234]
[1721053137487,0.67562405,3353.3,3353.1,2.9823]
[1721053137488,0.92611446,3353.3,3353.1,2.9823]
[1721053138627,0.92611446,3353.3,3352.6,2.98269]
[1721053138922,0.62386176,3353.1,3352.6,2.98274]
[1721053139303,0.62386176,3353.1,3352.7,2.98262]
[1721053140217,0.94228162,3353.1,3352.7,2.98262]
[1721053140531,0.92562932,3353.3,3353.0,2.9824]
[1721053140694,0.62337662,3353.2,3352.8,2.98251]
[1721053141029,0.3022527,3353.3,3352.8,2.98258]
[1721053141030,0.62337662,3353.1,3352.8,2.98258]
[1721053141225,0.6979431,3353.2,3351.9,2.4241]
[1721053141403,0.6979431,3353.2,3350.8,3.96175662]
[1721053141404,0.62337662,3352.8,3352.2,2.98304]
[1721053141606,0.53611818,3352.7,3352.2,2.98304]
[1721053141804,1.08491842,3352.7,3352.3,2.98302]
[1721053142004,0.4615418,3352.7,3352.3,2.98302]
[1721053142224,1.15949435,3352.7,3351.9,2.98336]
[1721053142427,0.62337662,3352.6,3351.9,2.98336]
[1721053142637,0.62337662,3352.6,3352.4,2.98292]
[1721053142842,0.62337662,3352.6,3351.8,0.118958]
[1721053142843,2.421,3353.1,3352.5,2.98284]
[1721053143138,1.49382625,3353.0,3352.5,2.98284]
[1721053143321,0.62327598,3352.9,3352.5,2.98284]
[1721053143725,4.49382625,3353.0,3352.5,2.98284]
[1721053144037,0.62327598,3352.9,3352.5,2.98284]
[1721053144544,0.62327598,3352.8,3352.3,2.98301]
[1721053144712,0.54287402,3352.7,3352.4,2.98291]
[1721053144915,0.54287402,3352.7,3352.1,2.98317]
[1721053145246,0.54287402,3352.7,3352.2,2.98311]
[1721053145624,0.62327598,3352.5,3351.8,3.102368]
[1721053145823,0.07458384,3352.4,3351.8,3.102368]
[1721053146054,5.33614,3352.3,3351.8,0.118958]
[1721053146214,2.3531,3352.3,3351.8,0.118958]
[1721053146618,5.95941598,3352.3,3351.8,0.118958]
[1721053146817,5.33614,3352.3,3351.8,0.118958]
[1721053147421,0.0745923,3352.2,3351.8,0.118958]
[1721053147614,0.91743315,3352.1,3351.8,0.118958]
[1721053147832,0.29435261,3352.1,3351.8,0.118958]
[1721053149551,0.07459275,3352.0,3351.8,0.118958]
[1721053150355,3.05791275,3352.0,3351.8,0.118958]
[1721053150858,11.56866025,3351.9,3351.8,0.118958]
[1721053151020,10.23838766,3351.9,3351.8,0.118958]
[1721053151218,6.63290934,3351.9,3351.8,0.118958]
[1721053152024,3.63290934,3351.9,3351.8,0.118958]
[1721053152355,2.3843,3351.9,3351.8,0.118958]
[1721053152737,0.29435261,3352.1,3351.8,0.118958]
[1721053153754,0.51583378,3352.4,3352.0,2.98329]
[1721053154165,0.51583378,3352.4,3351.8,3.102408]
[1721053154464,0.51583378,3352.4,3351.8,0.118958]
[1721053154676,3.49878378,3352.4,3351.8,0.118958]
[1721053154874,0.51583378,3352.4,3351.8,3.102418]
[1721053155332,0.35158338,3352.3,3351.8,3.102418]
[1721053155926,0.35158338,3352.3,3351.8,0.118958]
[1721053156143,0.42617445,3352.3,3351.8,0.118958]
[1721053156460,0.35158338,3352.3,3351.8,0.118958]
[1721053156629,3.33463338,3352.3,3351.8,0.118958]
[1721053156825,0.68333672,3352.2,3351.8,0.118958]
[1721053157068,0.51583378,3352.4,3351.8,0.118958]
[1721053157373,3.0,3352.6,3352.2,2.9831]
[1721053157543,0.0745799,3352.5,3351.8,0.118958]
[1721053157739,3.0,3352.5,3351.8,0.118958]
[1721053158163,0.07458202,3352.4,3351.9,2.98332]
[1721053158332,3.0,3352.6,3351.9,2.98332]
[1721053158536,1.144684,3352.5,3351.9,2.98332]
[1721053159567,0.6210219,3353.0,3351.9,2.98332]
[1721053159568,0.67277516,3353.1,3352.1,2.98312]
[1721053159768,5.3306,3353.7,3353.0,2.9824]
[1721053160353,2.3488,3353.7,3353.0,2.9824]
[1721053160561,3.57702219,3353.6,3352.7,2.98258]
[1721053161460,0.59514219,3353.6,3353.2,2.98221]
[1721053161772,2.3913,3354.1,3353.3,2.98213]
[1721053161995,2.3913,3354.1,3353.5,2.98192]
[1721053163265,0.6210219,3354.4,3353.6,2.98185]